fUSD/lending_fUSD_20241123
["ID","MTS","AMOUNT","RATE_DAILY","PERIOD"]
[343060531,1732320002051,300.0,0.00052634,9]
[343060532,1732320002095,355.0,0.00052634,10]
[343060533,1732320002459,327.27390859,0.00052535,2]
[343060534,1732320002628,609.03779596,0.00052535,2]
[343060535,1732320012624,194.86975502,0.00052634,120]
[343060536,1732320015524,136732.95613903,0.00052535,15]
[343060537,1732320041671,213.45747163,0.00052625,7]
[343060538,1732320041750,213.45747163,0.00052625,7]
[343060539,1732320041817,213.45747163,0.00052625,7]
[343060540,1732320054669,1231.724962,0.00052635,120]
[343060541,1732320061380,400.0,0.00052634,15]
[343060542,1732320064368,2097.52592637,0.00052535,2]
[343060543,1732320075520,83428.63077954,0.00052535,15]
[343060544,1732320078624,2271.54664528,0.00052535,29]
[343060545,1732320080305,388.29917569,0.00052635,120]
[343060546,1732320083939,47843.98,0.00051999,2]
[343060547,1732320089351,99723.02889446,0.00052535,2]
[343060548,1732320110645,658.6561,0.00052535,60]
[343060549,1732320117214,500.0,0.00052635,120]
[343060550,1732320123101,2929.33565102,0.00052389,2]
[343060551,1732320138572,201.66002026,0.00052389,2]
[343060552,1732320153513,23678.0,0.0005143,2]
[343060553,1732320196236,5554.71,0.00052189,7]
[343060554,1732320197704,327.2739085,0.00052389,2]
[343060555,1732320203548,1909.31907145,0.00052389,28]
[343060556,1732320204532,168.28916001,0.00052535,120]
[343060557,1732320221698,287.37606026,0.00052389,30]
[343060558,1732320241713,7822.19541576,0.00052389,120]
[343060559,1732320249458,647.37615467,0.00052489,30]
[343060560,1732320250177,647.37615467,0.00052489,30]
[343060561,1732320250894,647.37615467,0.00052489,30]
[343060562,1732320280127,250.0,0.00031,2]
[343060563,1732320281215,300.0,0.00033,2]
[343060564,1732320281583,162.43,0.00041096,2]
[343060565,1732320282301,350.0,0.00035,2]
[343060567,1732320284455,400.0,0.00037,2]
[343060568,1732320285540,450.0,0.00039,2]
[343060569,1732320286643,500.0,0.00041,2]
[343060570,1732320287737,550.0,0.00043,2]
[343060571,1732320288827,600.0,0.00045,2]
[343060572,1732320289900,650.0,0.00047,2]
[343060573,1732320290963,700.0,0.00049,2]
[343060574,1732320292030,750.0,0.00051,2]
[343060575,1732320293096,800.0,0.00053,2]
[343060576,1732320330006,-162.43,0.00053082,120]
[343060577,1732320330028,-1000.0,0.0005315,120]
[343060578,1732320330051,-215.79536915,0.00053215,7]
[343060579,1732320330171,-1000.0,0.00053424,120]
[343060580,1732320330200,-1000.0,0.00053698,120]
[343060581,1732320330222,-4139.61,0.00053763,45]
[343060582,1732320330244,-150.99,0.00053763,2]
[343060583,1732320330266,-5236.17,0.00053763,2]
[343060584,1732320330288,-944.24,0.00053763,2]
[343060585,1732320330310,-150.99,0.00053763,30]
[343060586,1732320330332,-1888.94,0.00053763,20]
[343060587,1732320330356,-9999.99,0.00053763,2]
[343060588,1732320330379,-1104.24,0.00053763,2]
[343060589,1732320330400,-999.99,0.00053763,10]
[343060590,1732320330427,-9999.99,0.00053763,2]
[343060591,1732320330449,-704.87,0.00053763,10]
[343060592,1732320330472,-152.09,0.00054,120]
[343060593,1732320330494,-152.09,0.00054,120]
[343060594,1732320330517,-152.09,0.00054,120]
[343060595,1732320330538,-152.09,0.00054,120]
[343060596,1732320330560,-152.09,0.00054,120]
[343060597,1732320330582,-152.09,0.00054,120]
[343060598,1732320330604,-666.0,0.00054795,120]
[343060599,1732320330626,-850.0,0.00055,2]
[343060601,1732320383317,327.2739085,0.00052389,2]
[343060602,1732320388062,500.0,0.00054794,120]
[343060603,1732320388333,327.2739085,0.00053462,2]
[343060604,1732320388667,500.0,0.00054794,120]
[343060605,1732320389047,500.0,0.00054794,120]
[343060606,1732320389334,500.0,0.00054794,120]
[343060607,1732320389868,500.0,0.00054794,120]
[343060608,1732320389936,500.0,0.00054794,120]
[343060609,1732320390590,500.0,0.00054794,120]
[343060610,1732320391026,500.0,0.00054794,120]
[343060611,1732320391300,500.0,0.00054794,120]
[343060612,1732320391576,500.0,0.00054794,120]
[343060613,1732320391832,500.0,0.00054794,120]
[343060616,1732320392431,500.0,0.00054794,120]
[343060618,1732320392731,500.0,0.00054794,120]
[343060619,1732320392989,327.2739085,0.00054535,2]
[343060620,1732320393019,500.0,0.00054794,120]
[343060621,1732320393275,500.0,0.00054794,120]
[343060622,1732320393558,500.0,0.00054794,120]
[343060623,1732320393852,500.0,0.00054794,120]
[343060624,1732320394185,567.27838369,0.00054794,120]
[343060626,1732320400176,338.99645724,0.00052389,24]
[343060628,1732320419748,19415.84425419,0.00055,120]
[343060630,1732320438992,1177.54,0.00054148,2]
[343060632,1732320444285,1000.0,0.00052488,30]
[343060633,1732320450155,1000.0,0.00052488,30]
[343060634,1732320455778,1000.0,0.00052488,30]
[343060635,1732320461395,267.5824,0.00052488,30]
[343060636,1732320479990,151.0,0.00055,2]
[343060637,1732320487554,2364.18297615,0.0005248,2]
[343060638,1732320496617,114897.0,0.00052488,120]
[343060639,1732320522931,332.2736988,0.0005239,29]
[343060640,1732320523040,6010.02,0.00053204,30]
[343060642,1732320545122,-6010.02,0.00055304,30]
[343060643,1732320545146,-3037.65,0.00055991,2]
[343060644,1732320545169,-690.35,0.00055999,2]
[343060645,1732320545192,-4680.56506683,0.00055999,2]
[343060646,1732320548410,327.2739085,0.0005239,2]
[343060647,1732320549227,-14759.12985894,0.00055999,2]
[343060648,1732320549249,-2000.0,0.00056006,120]
[343060649,1732320549273,-500.0,0.00056024,2]
[343060650,1732320549294,-166.28,0.00056066,2]
[343060651,1732320549320,-1177.54,0.00056412,2]
[343060652,1732320549342,-200.0,0.00056568,2]
[343060653,1732320549363,-541.13,0.00056622,30]
[343060654,1732320549384,-1751.3,0.00056627,2]
[343060655,1732320549407,-500.0,0.00056631,30]
[343060656,1732320549427,-9999.99,0.00056631,2]
[343060657,1732320549448,-696.82,0.00056631,2]
[343060658,1732320549469,-1099.78,0.00056631,5]
[343060659,1732320549492,-1513.46,0.00056631,2]
[343060660,1732320549511,-375.29,0.00056631,2]
[343060661,1732320549531,-162.33,0.00056631,30]
[343060662,1732320549552,-150.99,0.00056631,2]
[343060663,1732320549577,-305.49,0.00056631,2]
[343060664,1732320549598,-248.0,0.00056644,2]
[343060665,1732320549619,-200.0,0.00056661,30]
[343060666,1732320549641,-299.99,0.00056661,120]
[343060667,1732320549672,-8423.43880928,0.00056661,30]
[343060668,1732320550225,-21836.51119072,0.00056661,30]
[343060669,1732320550248,-5218.11654928,0.00056661,2]
[343060670,1732320551816,-4781.87345072,0.00056661,2]
[343060671,1732320551963,-334.13,0.00056661,30]
[343060672,1732320551987,-6746.97,0.00056661,20]
[343060673,1732320552012,-1905.33,0.00056661,2]
[343060674,1732320552038,-150.99,0.00056661,30]
[343060675,1732320552062,-325.94,0.00056661,2]
[343060676,1732320552087,-999.99,0.00056661,10]
[343060677,1732320552110,-3000.0,0.000567,90]
[343060678,1732320552132,-3207.23,0.0005674,2]
[343060679,1732320552155,-250.0,0.00056751,120]
[343060680,1732320552177,-150.68,0.00056763,120]
[343060681,1732320552199,-162.16,0.00056767,2]
[343060682,1732320552221,-1000.0,0.00056941,120]
[343060683,1732320552244,-377.62,0.00056941,120]
[343060684,1732320552266,-11857.04,0.00056944,2]
[343060685,1732320552287,-189.37,0.00056952,120]
[343060686,1732320552311,-4846.63,0.00056975,60]
[343060687,1732320552334,-186.528,0.00056986,120]
[343060688,1732320552357,-2868.24,0.00056997,2]
[343060689,1732320552380,-1701.44,0.00056997,2]
[343060690,1732320552404,-900.0,0.00057,2]
[343060691,1732320552428,-30636.12,0.00057014,2]
[343060692,1732320552452,-593.05,0.00057014,120]
[343060693,1732320552475,-4202.27,0.00057014,2]
[343060694,1732320552498,-4541.12,0.0005703,2]
[343060695,1732320552519,-330.68,0.00057057,2]
[343060696,1732320552543,-522.46,0.0005706,2]
[343060697,1732320552567,-522.46,0.00057075,2]
[343060698,1732320552591,-157.49,0.00057078,120]
[343060699,1732320552613,-522.46,0.0005709,2]
[343060700,1732320552636,-522.46,0.00057105,2]
[343060701,1732320552659,-522.46,0.0005712,2]
[343060702,1732320552683,-522.46,0.00057135,2]
[343060703,1732320552706,-522.46,0.0005715,2]
[343060704,1732320552728,-380.6,0.00057163,2]
[343060705,1732320552753,-522.46,0.00057165,2]
[343060706,1732320552777,-522.46,0.0005718,2]
[343060707,1732320552801,-522.46,0.00057195,2]
[343060708,1732320552826,-522.46,0.0005721,2]
[343060709,1732320552849,-522.46,0.00057225,2]
[343060710,1732320552872,-522.46,0.0005724,2]
[343060711,1732320552896,-522.46,0.00057255,2]
[343060712,1732320552919,-522.46,0.0005727,2]
[343060713,1732320552941,-522.46,0.00057285,2]
[343060714,1732320552965,-522.46,0.000573,2]
[343060715,1732320552986,-522.46,0.00057315,2]
[343060716,1732320553010,-522.46,0.0005733,2]
[343060717,1732320553033,-522.46,0.00057345,2]
[343060718,1732320553055,-300.0,0.00057367,120]
[343060719,1732320553081,-18564.24,0.00057382,2]
[343060720,1732320553103,-6010.02,0.00057405,30]
[343060721,1732320553128,-23900.0,0.0005748,2]
[343060722,1732320553152,-20333.47,0.00057532,2]
[343060723,1732320553174,-2928.86,0.00057542,2]
[343060724,1732320553196,-186.15965148,0.00057597,120]
[343060725,1732320553219,-150.0,0.00057649,2]
[343060726,1732320553241,-170.41,0.00057752,2]
[343060727,1732320553264,-158.8,0.0005808,2]
[343060728,1732320553285,-1234.01,0.00058354,2]
[343060729,1732320553307,-250.0,0.0005859,120]
[343060730,1732320553334,-1177.54,0.00058676,2]
[343060731,1732320553356,-300.0,0.00058737,120]
[343060732,1732320553380,-150.81,0.00058809,120]
[343060733,1732320553404,-4181.84,0.00058906,2]
[343060734,1732320553527,-150.68,0.00058979,120]
[343060735,1732320553550,-330.68,0.00059169,2]
[343060736,1732320553575,-168.28916001,0.00059218,120]
[343060737,1732320553599,-186.528,0.00059381,120]
[343060738,1732320553623,-777.85,0.00059388,30]
[343060739,1732320553646,-2250.0,0.000595,90]
[343060740,1732320553669,-6010.02,0.00059505,30]
[343060741,1732320553691,-250.0,0.00059709,120]
[343060742,1732320553715,-3642.662,0.00059871,120]
[343060743,1732320553739,-211.188,0.00059871,120]
[343060744,1732320553762,-32043.31460456,0.000599,120]
[343060745,1732320553784,-167.77,0.00059942,2]
[343060746,1732320553806,-500.0,0.00059973,15]
[343060747,1732320553830,-500.0,0.00059973,7]
[343060748,1732320553854,-500.0,0.00059973,15]
[343060749,1732320553875,-500.0,0.00059973,12]
[343060750,1732320553897,-500.0,0.00059973,7]
[343060751,1732320553920,-342.97467815,0.00059973,15]
[343060752,1732320553943,-500.0,0.00059973,15]
[343060753,1732320553964,-500.0,0.00059973,2]
[343060754,1732320553986,-1000.0,0.00059998,30]
[343060755,1732320554007,-2000.0,0.00059999,15]
[343060756,1732320554029,-200.0,0.00059999,15]
[343060757,1732320554052,-500.0,0.00059999,120]
[343060758,1732320554077,-225.96,0.00059999,120]
[343060759,1732320554099,-500.0,0.00059999,120]
[343060760,1732320554120,-500.0,0.00059999,120]
[343060761,1732320554143,-151.23803362,0.00059999,120]
[343060762,1732320554166,-500.0,0.00059999,120]
[343060763,1732320554188,-500.0,0.00059999,120]
[343060764,1732320554211,-500.0,0.00059999,120]
[343060765,1732320554232,-500.0,0.00059999,120]
[343060766,1732320554256,-499.60643479,0.00059999,120]
[343060767,1732320554279,-500.0,0.00059999,120]
[343060768,1732320554300,-500.0,0.00059999,120]
[343060769,1732320554325,-500.0,0.00059999,120]
[343060770,1732320554349,-500.0,0.00059999,120]
[343060771,1732320554370,-500.0,0.00059999,120]
[343060772,1732320554391,-500.0,0.00059999,120]
[343060773,1732320554417,-500.0,0.00059999,120]
[343060774,1732320554438,-500.0,0.00059999,120]
[343060775,1732320554461,-532.84856095,0.00059999,120]
[343060776,1732320554485,-500.0,0.00059999,120]
[343060777,1732320554508,-500.0,0.00059999,120]
[343060778,1732320554528,-500.0,0.00059999,120]
[343060779,1732320554549,-500.0,0.00059999,120]
[343060780,1732320554574,-355.66526357,0.00059999,120]
[343060781,1732320554599,-500.0,0.00059999,120]
[343060782,1732320554620,-500.0,0.00059999,120]
[343060783,1732320554641,-500.0,0.00059999,120]
[343060784,1732320554661,-500.0,0.00059999,120]
[343060785,1732320554682,-500.0,0.00059999,120]
[343060786,1732320554703,-500.0,0.00059999,120]
[343060787,1732320554724,-500.0,0.00059999,120]
[343060788,1732320554744,-500.0,0.00059999,120]
[343060789,1732320554765,-500.0,0.00059999,120]
[343060790,1732320554785,-500.0,0.00059999,120]
[343060791,1732320554805,-500.0,0.00059999,120]
[343060792,1732320554828,-500.0,0.00059999,120]
[343060793,1732320554849,-500.0,0.00059999,120]
[343060794,1732320554870,-500.0,0.00059999,120]
[343060795,1732320554986,-500.0,0.00059999,120]
[343060796,1732320555008,-500.0,0.00059999,120]
[343060797,1732320555032,-500.0,0.00059999,120]
[343060798,1732320555053,-500.0,0.00059999,120]
[343060799,1732320555077,-500.0,0.00059999,120]
[343060800,1732320555097,-500.0,0.00059999,120]
[343060801,1732320555117,-348.92,0.00059999,120]
[343060802,1732320555137,-570.72488598,0.00059999,120]
[343060803,1732320555157,-500.0,0.00059999,120]
[343060804,1732320555177,-500.0,0.00059999,120]
[343060805,1732320555198,-500.0,0.00059999,120]
[343060806,1732320555218,-500.0,0.00059999,120]
[343060807,1732320555238,-500.0,0.00059999,120]
[343060808,1732320555258,-500.0,0.00059999,120]
[343060809,1732320555279,-268.37875388,0.00059999,120]
[343060810,1732320555298,-549.0868043,0.00059999,120]
[343060811,1732320555321,-500.0,0.00059999,120]
[343060812,1732320555341,-500.0,0.00059999,120]
[343060813,1732320555363,-500.0,0.00059999,120]
[343060814,1732320555384,-532.69669786,0.00059999,120]
[343060815,1732320555404,-500.45696176,0.00059999,120]
[343060816,1732320555426,-500.0,0.00059999,120]
[343060817,1732320555446,-500.0,0.00059999,120]
[343060818,1732320555467,-540.3644278,0.00059999,120]
[343060819,1732320555488,-350.0,0.00059999,120]
[343060820,1732320555513,-228.14402179,0.00059999,120]
[343060821,1732320555533,-500.0,0.00059999,120]
[343060822,1732320555555,-500.0,0.00059999,120]
[343060823,1732320555579,-501.06297619,0.00059999,120]
[343060824,1732320555600,-500.0,0.00059999,120]
[343060825,1732320555622,-500.0,0.00059999,120]
[343060826,1732320555644,-500.0,0.00059999,120]
[343060827,1732320555665,-500.0,0.00059999,120]
[343060828,1732320555693,-500.0,0.00059999,120]
[343060829,1732320555714,-500.0,0.00059999,120]
[343060830,1732320555735,-500.0,0.00059999,120]
[343060831,1732320555756,-500.0,0.00059999,120]
[343060832,1732320555777,-500.0,0.00059999,120]
[343060833,1732320555798,-500.0,0.00059999,120]
[343060834,1732320555820,-500.0,0.00059999,120]
[343060835,1732320555841,-500.0,0.00059999,120]
[343060836,1732320555863,-500.0,0.00059999,120]
[343060837,1732320555884,-500.0,0.00059999,120]
[343060838,1732320555905,-500.0,0.00059999,120]
[343060839,1732320555926,-500.0,0.00059999,120]
[343060840,1732320555947,-500.0,0.00059999,120]
[343060841,1732320555970,-409.87278759,0.00059999,120]
[343060842,1732320555991,-500.0,0.00059999,120]
[343060843,1732320556013,-500.0,0.00059999,120]
[343060844,1732320556034,-500.0,0.00059999,120]
[343060845,1732320556055,-500.0,0.00059999,120]
[343060846,1732320556081,-500.0,0.00059999,120]
[343060847,1732320556104,-500.0,0.00059999,120]
[343060848,1732320556126,-529.02,0.00059999,120]
[343060849,1732320556147,-500.0,0.00059999,120]
[343060851,1732320556168,-500.0,0.00059999,120]
[343060852,1732320556190,-529.02,0.00059999,120]
[343060853,1732320556211,-529.02,0.00059999,120]
[343060854,1732320556296,-529.02,0.00059999,120]
[343060855,1732320556332,-529.02,0.00059999,120]
[343060856,1732320556352,-529.02,0.00059999,120]
[343060857,1732320556373,-529.02,0.00059999,120]
[343060858,1732320556394,-529.02,0.00059999,120]
[343060859,1732320556418,-529.02,0.00059999,120]
[343060860,1732320556439,-529.02,0.00059999,120]
[343060861,1732320556461,-529.02,0.00059999,120]
[343060862,1732320556481,-529.02,0.00059999,120]
[343060863,1732320556505,-529.02,0.00059999,120]
[343060864,1732320556525,-529.02,0.00059999,120]
[343060865,1732320556545,-529.02,0.00059999,120]
[343060866,1732320556568,-529.02,0.00059999,120]
[343060867,1732320556589,-500.0,0.00059999,120]
[343060868,1732320556609,-529.02,0.00059999,120]
[343060869,1732320556631,-529.02,0.00059999,120]
[343060870,1732320556652,-529.02,0.00059999,120]
[343060871,1732320556673,-529.02,0.00059999,120]
[343060872,1732320556695,-529.02,0.00059999,120]
[343060873,1732320556715,-529.02,0.00059999,120]
[343060874,1732320556736,-529.02,0.00059999,120]
[343060875,1732320556758,-529.19738367,0.00059999,120]
[343060876,1732320556784,-500.0,0.00059999,120]
[343060877,1732320556805,-500.0,0.00059999,120]
[343060878,1732320556831,-460.47,0.00059999,120]
[343060879,1732320556852,-326.09643839,0.00059999,120]
[343060880,1732320556873,-287.0,0.00059999,120]
[343060881,1732320556894,-500.0,0.00059999,120]
[343060882,1732320556914,-500.0,0.00059999,120]
[343060883,1732320556936,-500.0,0.00059999,120]
[343060884,1732320556958,-500.0,0.00059999,120]
[343060885,1732320556979,-500.0,0.00059999,120]
[343060886,1732320557000,-500.0,0.00059999,120]
[343060887,1732320557021,-500.0,0.00059999,120]
[343060888,1732320557041,-500.0,0.00059999,120]
[343060889,1732320557061,-500.0,0.00059999,120]
[343060890,1732320557086,-500.0,0.00059999,120]
[343060891,1732320557107,-500.0,0.00059999,120]
[343060892,1732320557128,-500.0,0.00059999,120]
[343060893,1732320557149,-500.0,0.00059999,120]
[343060894,1732320557172,-500.0,0.00059999,120]
[343060895,1732320557192,-500.0,0.00059999,120]
[343060896,1732320557213,-500.0,0.00059999,120]
[343060897,1732320557235,-500.0,0.00059999,120]
[343060898,1732320557257,-500.0,0.00059999,120]
[343060899,1732320557278,-500.0,0.00059999,120]
[343060900,1732320557299,-500.0,0.00059999,120]
[343060901,1732320557322,-500.0,0.00059999,120]
[343060902,1732320557344,-500.0,0.00059999,120]
[343060903,1732320557365,-500.0,0.00059999,120]
[343060904,1732320557385,-500.0,0.00059999,120]
[343060905,1732320557405,-500.0,0.00059999,120]
[343060906,1732320557427,-500.0,0.00059999,120]
[343060907,1732320557448,-500.0,0.00059999,120]
[343060908,1732320557469,-500.0,0.00059999,120]
[343060909,1732320557489,-500.0,0.00059999,120]
[343060910,1732320557576,-200.35906491,0.00059999,120]
[343060911,1732320557599,-500.0,0.00059999,120]
[343060912,1732320557619,-500.0,0.00059999,120]
[343060913,1732320557640,-500.0,0.00059999,120]
[343060914,1732320557660,-271.6843277,0.00059999,120]
[343060915,1732320557680,-500.0,0.00059999,120]
[343060916,1732320557700,-500.0,0.00059999,120]
[343060917,1732320557720,-500.0,0.00059999,2]
[343060918,1732320557740,-500.0,0.00059999,120]
[343060919,1732320557765,-500.0,0.00059999,2]
[343060920,1732320557787,-500.0,0.00059999,120]
[343060921,1732320557807,-500.0,0.00059999,120]
[343060922,1732320557829,-500.0,0.00059999,120]
[343060923,1732320557849,-500.0,0.00059999,2]
[343060924,1732320557874,-500.0,0.00059999,120]
[343060925,1732320557895,-500.0,0.00059999,120]
[343060926,1732320557915,-500.0,0.00059999,2]
[343060927,1732320557935,-500.0,0.00059999,120]
[343060928,1732320557956,-500.0,0.00059999,120]
[343060929,1732320557979,-500.0,0.00059999,120]
[343060930,1732320558000,-500.0,0.00059999,2]
[343060931,1732320558020,-500.0,0.00059999,120]
[343060932,1732320558041,-370.48317782,0.00059999,120]
[343060933,1732320558062,-500.0,0.00059999,120]
[343060934,1732320558087,-500.0,0.00059999,2]
[343060935,1732320558110,-430.18,0.00059999,120]
[343060936,1732320558132,-500.0,0.00059999,120]
[343060937,1732320558153,-500.0,0.00059999,2]
[343060938,1732320558174,-500.0,0.00059999,120]
[343060939,1732320558194,-419.04,0.00059999,2]
[343060940,1732320558215,-500.0,0.00059999,120]
[343060941,1732320558235,-500.0,0.00059999,120]
[343060942,1732320558256,-500.0,0.00059999,120]
[343060943,1732320558276,-500.0,0.00059999,120]
[343060944,1732320558301,-500.0,0.00059999,120]
[343060945,1732320558323,-500.0,0.00059999,120]
[343060946,1732320558343,-500.0,0.00059999,120]
[343060947,1732320558364,-482.12700461,0.00059999,120]
[343060948,1732320558385,-500.0,0.00059999,120]
[343060949,1732320558409,-500.0,0.00059999,120]
[343060950,1732320558430,-500.0,0.00059999,120]
[343060951,1732320558455,-500.0,0.00059999,120]
[343060952,1732320558476,-500.0,0.00059999,120]
[343060953,1732320558499,-500.0,0.00059999,120]
[343060954,1732320558521,-500.0,0.00059999,120]
[343060955,1732320558542,-500.0,0.00059999,120]
[343060956,1732320558563,-500.0,0.00059999,120]
[343060957,1732320558590,-500.0,0.00059999,120]
[343060958,1732320558613,-500.0,0.00059999,120]
[343060959,1732320558634,-500.0,0.00059999,120]
[343060960,1732320558654,-500.0,0.00059999,120]
[343060961,1732320558676,-500.0,0.00059999,120]
[343060962,1732320558697,-500.0,0.00059999,120]
[343060963,1732320558719,-500.0,0.00059999,120]
[343060964,1732320558824,-500.0,0.00059999,120]
[343060965,1732320558846,-500.0,0.00059999,120]
[343060966,1732320558867,-500.0,0.00059999,120]
[343060967,1732320558889,-500.0,0.00059999,120]
[343060968,1732320558911,-500.0,0.00059999,120]
[343060969,1732320558934,-500.0,0.00059999,120]
[343060970,1732320558960,-500.0,0.00059999,120]
[343060971,1732320558982,-500.0,0.00059999,120]
[343060972,1732320559008,-500.0,0.00059999,120]
[343060973,1732320559030,-500.0,0.00059999,120]
[343060974,1732320559053,-500.0,0.00059999,120]
[343060975,1732320559077,-500.0,0.00059999,120]
[343060976,1732320559098,-500.0,0.00059999,120]
[343060977,1732320559119,-500.0,0.00059999,120]
[343060978,1732320559140,-500.0,0.00059999,120]
[343060979,1732320559161,-500.0,0.00059999,120]
[343060980,1732320559182,-500.0,0.00059999,120]
[343060981,1732320559203,-500.0,0.00059999,120]
[343060982,1732320559225,-500.0,0.00059999,120]
[343060983,1732320559246,-500.0,0.00059999,120]
[343060984,1732320559267,-500.0,0.00059999,120]
[343060985,1732320559288,-500.0,0.00059999,120]
[343060986,1732320559309,-500.0,0.00059999,120]
[343060987,1732320559331,-500.0,0.00059999,120]
[343060988,1732320559353,-591.36,0.00059999,120]
[343060989,1732320559375,-500.0,0.00059999,120]
[343060990,1732320559396,-500.0,0.00059999,120]
[343060991,1732320559424,-500.0,0.00059999,120]
[343060992,1732320559447,-253.80000005,0.00059999,120]
[343060993,1732320559470,-500.0,0.00059999,120]
[343060994,1732320559497,-500.0,0.00059999,120]
[343060995,1732320559521,-500.0,0.00059999,120]
[343060996,1732320559544,-329.45580545,0.00059999,120]
[343060997,1732320559568,-500.0,0.00059999,120]
[343060998,1732320559590,-505.18514629,0.00059999,120]
[343060999,1732320559613,-518.01759178,0.00059999,120]
[343061000,1732320559634,-387.62822897,0.00059999,120]
[343061001,1732320559655,-500.0,0.00059999,120]
[343061002,1732320559676,-500.0,0.00059999,120]
[343061003,1732320559699,-500.0,0.00059999,120]
[343061004,1732320559721,-500.0,0.00059999,120]
[343061005,1732320559743,-500.0,0.00059999,120]
[343061006,1732320559778,-500.0,0.00059999,120]
[343061007,1732320559801,-500.0,0.00059999,120]
[343061008,1732320559825,-500.0,0.00059999,120]
[343061009,1732320559852,-500.0,0.00059999,120]
[343061010,1732320559877,-500.0,0.00059999,120]
[343061011,1732320559901,-500.0,0.00059999,120]
[343061012,1732320559925,-500.0,0.00059999,120]
[343061013,1732320559947,-264.22496232,0.00059999,120]
[343061014,1732320559970,-500.0,0.00059999,120]
[343061015,1732320559993,-500.0,0.00059999,120]
[343061016,1732320560109,-500.0,0.00059999,120]
[343061017,1732320560132,-500.96978675,0.00059999,120]
[343061018,1732320560154,-500.0,0.00059999,120]
[343061019,1732320560176,-500.0,0.00059999,120]
[343061020,1732320560197,-500.0,0.00059999,120]
[343061021,1732320560220,-500.0,0.00059999,120]
[343061022,1732320560243,-491.00450002,0.00059999,120]
[343061023,1732320560264,-500.0,0.00059999,120]
[343061024,1732320560285,-500.0,0.00059999,120]
[343061025,1732320560306,-500.0,0.00059999,120]
[343061026,1732320560330,-500.0,0.00059999,120]
[343061027,1732320560352,-636.30608341,0.00059999,120]
[343061028,1732320560372,-504.38890804,0.00059999,120]
[343061029,1732320560393,-500.0,0.00059999,120]
[343061030,1732320560416,-531.6309218,0.00059999,120]
[343061031,1732320560440,-500.0,0.00059999,120]
[343061032,1732320560461,-500.0,0.00059999,120]
[343061033,1732320560484,-500.0,0.00059999,120]
[343061034,1732320560507,-500.0,0.00059999,120]
[343061035,1732320560529,-500.0,0.00059999,120]
[343061036,1732320560550,-500.0,0.00059999,120]
[343061037,1732320560573,-500.0,0.00059999,120]
[343061038,1732320560594,-500.0,0.00059999,120]
[343061039,1732320560616,-500.0,0.00059999,120]
[343061040,1732320560638,-500.0,0.00059999,120]
[343061041,1732320560660,-500.0,0.00059999,120]